fUSD/lending_fUSD_20240420
["ID","MTS","AMOUNT","RATE_DAILY","PERIOD"]
[323081127,1713628245503,-500.0,0.00016161,2]
[323081129,1713628245513,-500.0,0.00016161,2]
[323081130,1713628245522,-500.0,0.00016161,2]
[323081131,1713628245531,-500.0,0.00016161,2]
[323081132,1713628245541,-500.0,0.00016161,2]
[323081133,1713628245551,-500.0,0.00016161,2]
[323081134,1713628245561,-500.0,0.00016161,2]
[323081135,1713628245570,-500.0,0.00016161,2]
[323081136,1713628245581,-500.0,0.00016161,2]
[323081137,1713628245591,-537.7183189,0.00016161,2]
[323081138,1713628245600,-500.0,0.00016161,2]
[323081139,1713628245610,-500.0,0.00016161,2]
[323081140,1713628245620,-500.0,0.00016161,2]
[323081141,1713628245630,-500.0,0.00016161,2]
[323081142,1713628245640,-500.0,0.00016161,2]
[323081143,1713628245649,-506.82887229,0.00016161,2]
[323081144,1713628245659,-500.0,0.00016161,2]
[323081145,1713628245669,-500.0,0.00016161,2]
[323081146,1713628245678,-500.0,0.00016161,2]
[323081147,1713628245688,-500.0,0.00016161,2]
[323081148,1713628245698,-500.0,0.00016161,2]
[323081149,1713628245707,-500.0,0.00016161,2]
[323081150,1713628245717,-500.0,0.00016161,2]
[323081151,1713628245731,-500.0,0.00016161,2]
[323081152,1713628245740,-500.0,0.00016161,2]
[323081153,1713628245750,-500.0,0.00016161,2]
[323081154,1713628245759,-500.0,0.00016161,2]
[323081155,1713628245768,-500.0,0.00016161,2]
[323081156,1713628245778,-500.0,0.00016161,2]
[323081157,1713628245788,-500.0,0.00016161,2]
[323081158,1713628245797,-500.0,0.00016161,2]
[323081159,1713628245807,-500.0,0.00016161,2]
[323081160,1713628245816,-157.85258778,0.00016161,2]
[323081161,1713628245825,-500.0,0.00016161,2]
[323081162,1713628245835,-270.88,0.00016161,2]
[323081163,1713628245844,-500.0,0.00016161,2]
[323081164,1713628245854,-272.82,0.00016161,2]
[323081165,1713628245863,-500.0,0.00016161,2]
[323081166,1713628245872,-500.0,0.00016161,2]
[323081167,1713628245882,-500.0,0.00016161,2]
[323081168,1713628245891,-500.0,0.00016161,2]
[323081169,1713628245901,-500.0,0.00016161,2]
[323081170,1713628245911,-500.0,0.00016161,2]
[323081171,1713628245920,-500.0,0.00016161,2]
[323081172,1713628245929,-500.0,0.00016161,2]
[323081173,1713628245938,-901.23,0.00016161,2]
[323081174,1713628245948,-500.0,0.00016161,2]
[323081175,1713628245958,-500.0,0.00016161,2]
[323081176,1713628245968,-500.0,0.00016161,2]
[323081177,1713628245980,-426.36,0.00016161,2]
[323081178,1713628245989,-500.0,0.00016161,2]
[323081179,1713628245999,-500.0,0.00016161,2]
[323081180,1713628246008,-500.0,0.00016161,2]
[323081181,1713628246018,-500.0,0.00016161,2]
[323081182,1713628246027,-866.21,0.00016161,2]
[323081183,1713628246036,-500.0,0.00016161,2]
[323081185,1713628246046,-500.0,0.00016161,2]
[323081187,1713628246056,-516.64,0.00016161,2]
[323081189,1713628246065,-278.34,0.00016161,2]
[323081191,1713628246074,-500.0,0.00016162,2]
[323081193,1713628246084,-500.0,0.00016162,2]
[323081194,1713628246094,-500.0,0.00016162,2]
[323081195,1713628246103,-500.0,0.00016162,2]
[323081196,1713628246113,-500.0,0.00016162,2]
[323081197,1713628246122,-500.0,0.00016162,2]
[323081198,1713628246132,-500.0,0.00016162,2]
[323081199,1713628246142,-176.47788724,0.00016162,2]
[323081200,1713628246152,-500.0,0.00016162,2]
[323081201,1713628246161,-500.0,0.00016162,2]
[323081202,1713628246171,-500.0,0.00016162,2]
[323081203,1713628246181,-500.0,0.00016162,2]
[323081204,1713628246190,-500.0,0.00016162,2]
[323081205,1713628246199,-500.0,0.00016162,2]
[323081206,1713628246209,-500.0,0.00016162,2]
[323081207,1713628246218,-500.0,0.00016162,2]
[323081208,1713628246234,-191.3,0.00016162,2]
[323081209,1713628246244,-500.0,0.00016162,2]
[323081210,1713628246253,-500.0,0.00016162,2]
[323081211,1713628246262,-356.01,0.00016162,2]
[323081212,1713628246272,-343.9,0.00016162,2]
[323081213,1713628246282,-500.0,0.00016162,2]
[323081214,1713628246291,-500.0,0.00016162,2]
[323081215,1713628246301,-500.0,0.00016162,2]
[323081216,1713628246311,-500.0,0.00016162,2]
[323081217,1713628246320,-500.0,0.00016162,2]
[323081218,1713628246329,-500.0,0.00016162,2]
[323081219,1713628246339,-500.0,0.00016162,2]
[323081220,1713628246349,-500.0,0.00016162,2]
[323081221,1713628246359,-500.0,0.00016162,2]
[323081222,1713628246369,-500.0,0.00016162,2]
[323081223,1713628246378,-500.0,0.00016162,2]
[323081224,1713628246388,-500.0,0.00016162,2]
[323081225,1713628246398,-500.0,0.00016162,2]
[323081226,1713628246407,-500.0,0.00016162,2]
[323081227,1713628246416,-500.0,0.00016162,2]
[323081228,1713628246426,-500.0,0.00016162,2]
[323081229,1713628246435,-500.0,0.00016162,2]
[323081230,1713628246445,-500.0,0.00016162,2]
[323081231,1713628246454,-500.0,0.00016162,2]
[323081232,1713628246463,-500.0,0.00016162,2]
[323081233,1713628246475,-500.0,0.00016162,2]
[323081234,1713628246484,-617.65,0.00016162,2]
[323081235,1713628246493,-500.0,0.00016162,2]
[323081236,1713628246502,-500.0,0.00016162,2]
[323081237,1713628246513,-500.0,0.00016162,2]
[323081238,1713628246523,-500.0,0.00016162,2]
[323081239,1713628246532,-487.05,0.00016162,2]
[323081240,1713628246542,-500.0,0.00016162,2]
[323081241,1713628246552,-500.0,0.00016162,2]
[323081242,1713628246562,-500.0,0.00016162,2]
[323081243,1713628246571,-1000.0,0.00016188,2]
[323081244,1713628246580,-3262.0,0.000164,2]
[323081245,1713628246591,-817.0,0.000164,2]
[323081246,1713628246601,-150.54873054,0.00016426,2]
[323081247,1713628246611,-500.0,0.00016434,2]
[323081248,1713628246620,-500.0,0.00016434,2]
[323081249,1713628246629,-500.0,0.00016434,2]
[323081250,1713628246638,-500.0,0.00016434,2]
[323081251,1713628246647,-500.0,0.00016434,2]
[323081252,1713628246656,-500.0,0.00016434,2]
[323081253,1713628246665,-500.0,0.00016435,2]
[323081254,1713628246675,-500.0,0.00016435,2]
[323081255,1713628246684,-500.0,0.00016435,2]
[323081256,1713628246693,-500.0,0.00016435,2]
[323081257,1713628246702,-500.0,0.00016435,2]
[323081258,1713628246711,-500.0,0.00016435,2]
[323081259,1713628246723,-500.0,0.00016435,2]
[323081260,1713628246732,-186.55,0.00016435,2]
[323081261,1713628246741,-500.0,0.00016435,2]
[323081262,1713628246750,-500.0,0.00016435,2]
[323081263,1713628246760,-500.0,0.00016435,2]
[323081264,1713628246770,-500.0,0.00016435,2]
[323081265,1713628246779,-500.0,0.00016435,2]
[323081266,1713628246789,-500.0,0.00016435,2]
[323081267,1713628246799,-1197.91,0.00016435,2]
[323081268,1713628246808,-500.0,0.00016435,2]
[323081269,1713628246817,-500.0,0.00016435,2]
[323081270,1713628246827,-500.0,0.00016435,2]
[323081271,1713628246837,-500.0,0.00016435,2]
[323081272,1713628246846,-500.0,0.00016435,2]
[323081273,1713628246856,-500.0,0.00016435,2]
[323081274,1713628246866,-500.0,0.00016435,2]
[323081275,1713628246875,-500.0,0.00016435,2]
[323081276,1713628246886,-500.0,0.00016435,2]
[323081277,1713628246895,-500.0,0.00016435,2]
[323081278,1713628246905,-500.0,0.00016435,2]
[323081279,1713628246914,-500.0,0.00016435,2]
[323081280,1713628246924,-500.0,0.00016435,2]
[323081281,1713628246934,-500.0,0.00016435,2]
[323081282,1713628246943,-500.0,0.00016435,2]
[323081283,1713628246952,-500.0,0.00016435,2]
[323081284,1713628246961,-500.0,0.00016435,2]
[323081285,1713628246973,-500.0,0.00016435,2]
[323081286,1713628246983,-500.0,0.00016435,2]
[323081287,1713628246993,-500.0,0.00016435,2]
[323081288,1713628247002,-500.0,0.00016435,2]
[323081289,1713628247012,-500.0,0.00016435,2]
[323081290,1713628247021,-500.0,0.00016435,2]
[323081291,1713628247031,-500.0,0.00016435,2]
[323081292,1713628247041,-332.16,0.00016435,2]
[323081293,1713628247050,-500.0,0.00016435,2]
[323081294,1713628247060,-500.0,0.00016435,2]
[323081295,1713628247069,-211.28,0.00016435,2]
[323081296,1713628247078,-500.0,0.00016435,2]
[323081297,1713628247088,-500.0,0.00016435,2]
[323081298,1713628247098,-500.0,0.00016435,2]
[323081299,1713628247108,-393.52,0.00016435,2]
[323081300,1713628247117,-500.0,0.00016435,2]
[323081301,1713628247127,-552.92742792,0.00016435,2]
[323081302,1713628247139,-500.0,0.00016435,2]
[323081303,1713628247149,-500.0,0.00016435,2]
[323081304,1713628247159,-500.0,0.00016435,2]
[323081305,1713628247169,-500.0,0.00016435,2]
[323081306,1713628247179,-500.0,0.00016435,2]
[323081307,1713628247188,-500.0,0.00016435,2]
[323081308,1713628247198,-610.57972863,0.00016435,2]
[323081309,1713628247207,-500.0,0.00016435,2]
[323081310,1713628247217,-500.0,0.00016435,2]
[323081311,1713628247230,-500.0,0.00016435,2]
[323081312,1713628247239,-500.0,0.00016435,2]
[323081313,1713628247249,-227.04,0.00016435,2]
[323081314,1713628247259,-500.0,0.00016435,2]
[323081315,1713628247268,-500.0,0.00016435,2]
[323081316,1713628247278,-500.0,0.00016435,2]
[323081317,1713628247287,-901.23,0.00016435,2]
[323081318,1713628247296,-287.28,0.00016435,2]
[323081319,1713628247305,-245.90236049,0.00016435,2]
[323081320,1713628247321,-254.09763951,0.00016435,2]
[323081321,1713628247330,-256.53756021,0.00016435,2]
[323081322,1713628247342,-243.46243979,0.00016435,2]
[323081323,1713628247351,-866.21,0.00016435,2]
[323081324,1713628247360,-500.0,0.00016435,2]
[323081325,1713628247370,-583.73,0.00016435,2]
[323081326,1713628247380,-500.0,0.00016436,2]
[323081327,1713628247389,-262.5117093,0.00016436,2]
[323081328,1713628248085,-194.21600939,0.00015885,2]
[323081329,1713628248095,-306.60860174,0.00015885,2]
[323081330,1713628248104,-372.47,0.00016436,2]
[323081331,1713628248114,-302.61,0.00016436,2]
[323081332,1713628248123,-500.77697446,0.00016436,2]
[323081333,1713628248133,-500.0,0.00016436,2]
[323081334,1713628248141,-159.05,0.00016436,2]
[323081335,1713628248150,-209.51,0.00016436,2]
[323081336,1713628248160,-500.0,0.00016436,2]
[323081337,1713628248169,-500.0,0.00016436,2]
[323081338,1713628248178,-500.0,0.00016436,2]
[323081339,1713628248187,-500.0,0.00016436,2]
[323081340,1713628248197,-500.0,0.00016436,2]
[323081341,1713628248206,-500.0,0.00016436,2]
[323081342,1713628248215,-500.0,0.00016436,2]
[323081343,1713628248226,-500.0,0.00016436,2]
[323081344,1713628248235,-500.0,0.00016436,2]
[323081345,1713628248245,-309.6,0.00016436,2]
[323081346,1713628248254,-500.0,0.00016436,2]
[323081347,1713628248263,-500.0,0.00016436,2]
[323081348,1713628248273,-500.0,0.00016436,2]
[323081349,1713628248282,-500.0,0.00016436,2]
[323081350,1713628248292,-500.0,0.00016436,2]
[323081351,1713628248301,-500.0,0.00016436,2]
[323081352,1713628248311,-500.0,0.00016436,2]
[323081353,1713628248320,-500.0,0.00016436,2]
[323081354,1713628248329,-17.71321079,0.00016436,2]
[323081355,1713628248416,-482.28678921,0.00016436,2]
[323081356,1713628248425,-33.19982761,0.00016436,2]
[323081357,1713628248536,-124.70017239,0.00016436,2]
[323081358,1713628248547,-500.0,0.00016436,2]
[323081359,1713628248556,-500.0,0.00016436,2]
[323081360,1713628248565,-500.0,0.00016436,2]
[323081361,1713628248574,-500.0,0.00016436,2]
[323081362,1713628248585,-500.0,0.00016436,2]
[323081363,1713628248594,-500.0,0.00016436,2]
[323081364,1713628248604,-500.0,0.00016436,2]
[323081365,1713628248613,-500.0,0.00016436,2]
[323081366,1713628248623,-500.0,0.00016436,2]
[323081367,1713628248638,-503.9,0.00016436,2]
[323081368,1713628248649,-500.0,0.00016436,2]
[323081369,1713628248658,-500.0,0.00016436,2]
[323081370,1713628248667,-500.0,0.00016436,2]
[323081371,1713628248677,-500.0,0.00016436,2]
[323081372,1713628248686,-258.6,0.00016436,2]
[323081373,1713628248695,-588.49417761,0.00016438,2]
[323081374,1713628248707,-1434.24582239,0.00016438,2]
[323081375,1713628248716,-1223.62381622,0.000165,2]
[323081376,1713628248729,-16.37598226,0.00016577,2]
[323081377,1713628248740,-183.62401774,0.00016577,2]
[323081378,1713628248750,-500.0,0.00016577,2]
[323081379,1713628248759,-207.33406528,0.00016608,2]
[323081380,1713628248768,-794.87377694,0.00016608,2]
[323081381,1713628248777,-17477.63066644,0.00016609,2]
[323081382,1713628248800,-3542.28432584,0.00016609,2]
[323081383,1713628248824,-637.2797,0.00016609,2]
[323081384,1713628248844,-565.14128959,0.00016609,2]
[323081385,1713628248884,-2075.39431813,0.00016609,2]
[323081386,1713628248894,-300.0,0.0001661,2]
[323081387,1713628248904,-306.655,0.00016611,2]
[323081388,1713628248913,-13935.21121138,0.000167,2]
[323081389,1713628248926,-50279.74546738,0.000167,2]
[323081390,1713628248938,-820.1064832,0.000167,2]
[323081391,1713628248950,-4633.51868779,0.000167,2]
[323081392,1713628248962,-3229.24667379,0.000167,2]
[323081396,1713628766386,-210.53465711,0.0001221,2]
[323081397,1713628766407,-202.26348816,0.00012211,2]
[323081398,1713628766427,-161.45924312,0.00012212,2]
[323081399,1713628766448,-155.0,0.00012212,2]
[323081400,1713628766469,-7328.82099403,0.00012213,2]
[323081401,1713628766493,-623.56050911,0.00012227,2]
[323081402,1713628766514,-213.8792849,0.00012228,2]
[323081403,1713628766534,-1516.50364289,0.0001223,2]
[323081404,1713628795752,4660.63,0.000273,120]
[323081405,1713628807767,-210.53465711,0.0001223,2]
[323081406,1713628989549,12614.86892584,0.00028,120]
[323081434,1713629431569,-202.26348816,0.00012095,2]
[323081435,1713629431578,-720.47521704,0.00012096,2]
[323081437,1713629431593,-668.29261073,0.00012096,2]
[323081439,1713629431603,-2359.2011908,0.00012097,2]
[323081440,1713629431613,-173.5,0.00012108,2]
[323081442,1713629431622,-364.32664962,0.00013917,2]
[323081443,1713629431641,-537.58482089,0.00013917,2]
[323081444,1713629431653,-308.68743525,0.00013917,2]
[323081446,1713629431691,-399.61727298,0.00013917,2]
[323081447,1713629431833,-3064.60664569,0.00013917,2]
[323081448,1713629431897,-30569.84870775,0.00013917,2]
[323081449,1713629431909,-16325.54449928,0.00013918,2]
[323081450,1713629431921,-2040.41244433,0.00013918,2]
[323081451,1713629431933,-1343.14978336,0.00013918,2]
[323081452,1713629431945,-3635.43841436,0.00013918,2]
[323081453,1713629431954,-150.0,0.00013919,2]
[323081455,1713629431964,-150.0,0.00013919,2]
[323081457,1713629431974,-198.25,0.00013921,2]
[323081458,1713629431983,-2000.0,0.00013923,3]
[323081459,1713629431992,-209.99236181,0.00013992,2]
[323081460,1713629432002,-413.30861325,0.00013996,2]
[323081463,1713629432023,-2585.54067725,0.00013996,2]
[323081465,1713629432033,-433.15240288,0.00013996,2]
[323081467,1713629432043,-3079.50911342,0.00013997,2]
[323081469,1713629432054,-347.34840719,0.00013997,2]
[323081471,1713629432064,-499.99,0.00013997,2]
[323081473,1713629432074,-2250.0,0.00014,2]
[323081475,1713629432083,-5422.29,0.00014005,2]
[323081477,1713629432093,-398.42,0.00014039,2]
[323081479,1713629432103,-157.22,0.00014058,2]
[323081481,1713629432113,-157.22,0.00014205,2]
[323081483,1713629432124,-157.22,0.00014351,2]
[323081485,1713629432134,-173.5,0.00014372,2]
[323081487,1713629432143,-1000.0,0.000144,2]
[323081489,1713629432153,-157.22,0.00014498,2]
[323081491,1713629432166,-184.34,0.00014574,2]
[323081493,1713629432177,-184.34,0.00014578,2]
[323081495,1713629432187,-565.74,0.00014578,2]
[323081497,1713629432197,-184.34,0.00014582,2]
[323081499,1713629432207,-184.34,0.00014585,2]
[323081501,1713629432217,-184.34,0.00014589,2]
[323081503,1713629432227,-184.34,0.00014593,2]
[323081505,1713629432236,-184.34,0.00014597,2]
[323081507,1713629432246,-184.34,0.00014601,2]
[323081509,1713629432256,-184.34,0.00014605,2]
[323081511,1713629432266,-184.34,0.00014609,2]
[323081512,1713629432276,-184.34,0.00014612,2]
[323081513,1713629432286,-184.34,0.00014616,2]
[323081514,1713629432297,-184.34,0.0001462,2]
[323081515,1713629432307,-184.34,0.00014624,2]
[323081516,1713629432317,-184.34,0.00014628,2]
[323081517,1713629432327,-184.34,0.00014632,2]
[323081518,1713629432336,-184.34,0.00014635,2]
[323081519,1713629432346,-184.34,0.00014639,2]
[323081520,1713629432357,-184.34,0.00014643,2]
[323081521,1713629432367,-157.22,0.00014644,2]
[323081522,1713629432377,-184.34,0.00014647,2]
[323081523,1713629432387,-157.22,0.00014791,2]
[323081524,1713629432398,-400.0,0.00014853,2]
[323081525,1713629432412,-184.3155,0.00014897,2]
[323081526,1713629432423,-753.6094,0.000149,2]
[323081527,1713629432433,-184.06,0.0001499,3]
[323081528,1713629432444,-552.21,0.0001499,3]
[323081529,1713629432454,-461.49170109,0.00014997,2]
[323081530,1713629432464,-169.61877142,0.00014997,2]
[323081531,1713629432476,-155.0,0.00014997,2]
[323081532,1713629432486,-161.35873844,0.00014997,2]
[323081533,1713629432496,-210.40582089,0.00014997,2]
[323081534,1713629432506,-155.0,0.00014997,2]
[323081535,1713629432518,-362.90116211,0.00014997,2]
[323081536,1713629432530,-3757.73056516,0.00014998,2]
[323081537,1713629432539,-1930.5,0.00014998,2]
[323081538,1713629432550,-272.87445165,0.00014999,2]
[323081573,1713629437632,-968.16465511,0.00014999,2]
[323081575,1713629437642,-1824.0722,0.00015,3]
[323081577,1713629437652,-448.11314489,0.00015,5]
[323081581,1713629437689,-696.59396377,0.00015,5]
[323081584,1713629437701,-19691.98427207,0.00015,5]
[323081590,1713629437747,-59085.38231315,0.00015,5]
[323081592,1713629437757,-426.81421058,0.00015,2]
[323081594,1713629437767,-617.34653271,0.00015,2]
[323081596,1713629437777,-1474.54177032,0.00015,2]
[323081598,1713629437786,-155.0,0.00015,2]
[323081600,1713629437795,-200.0,0.00015,2]
[323081602,1713629437805,-256.73745361,0.00015,2]
[323081604,1713629437815,-2679.5570654,0.00015087,2]
[323081606,1713629437824,-178.01153981,0.00015089,2]
[323081608,1713629437833,-211.402465,0.00015256,2]
[323081610,1713629437843,-173.624432,0.00015256,2]
[323081612,1713629437853,-179.057739,0.00015256,2]
[323081614,1713629437862,-235.641467,0.00015256,2]
[323081615,1713629437871,-173.624432,0.00015256,2]
[323081616,1713629437881,-166.912703,0.00015256,2]
[323081617,1713629437895,-179.057739,0.00015256,2]
[323081618,1713629437904,-195.327487,0.00015256,2]
[323081619,1713629437916,-150.260719,0.00015256,2]
[323081620,1713629437926,-172.043866,0.00015256,2]
[323081621,1713629437936,-216.004674,0.00015256,2]
[323081622,1713629437946,-201.439956,0.00015256,2]
[323081623,1713629437955,-244.38,0.00015375,2]
[323081624,1713629437965,-166.912703,0.0001551,2]
[323081625,1713629437975,-166.912703,0.00015765,2]
[323081626,1713629437985,-7500.0,0.00015781,2]
[323081627,1713629437995,-453.7115,0.00015781,2]
[323081628,1713629438005,-1065.5352,0.00015782,2]
[323081629,1713629438015,-2184.7638,0.00015782,2]
[323081630,1713629438025,-1368.04234114,0.00015783,2]
[323081632,1713629438034,-307.26933006,0.00015783,2]
[323081633,1713629438043,-176.5144385,0.00015787,2]
[323081635,1713629438053,-1000.0,0.00015787,2]
[323081637,1713629438062,-398.42,0.00015794,2]
[323081639,1713629438072,-167.31,0.00015831,2]
[323081641,1713629438081,-800.0,0.00015863,2]
[323081643,1713629438091,-155.0,0.00015868,2]
[323081645,1713629438101,-2639.06353275,0.00015869,2]
[323081646,1713629438112,-151.64,0.00015873,2]
[323081647,1713629438123,-500.0,0.0001588,2]
[323081648,1713629438134,-500.0,0.0001588,2]
[323081649,1713629438143,-500.0,0.0001588,2]
[323081650,1713629438154,-500.0,0.0001588,2]
[323081651,1713629438166,-500.0,0.0001588,2]
[323081652,1713629438177,-500.0,0.0001588,2]
[323081653,1713629438187,-500.0,0.0001588,2]
[323081654,1713629438198,-500.0,0.0001588,2]
[323081655,1713629438208,-500.0,0.0001588,2]
[323081656,1713629438217,-500.0,0.0001588,2]
[323081657,1713629438227,-500.0,0.0001588,2]
[323081658,1713629438237,-500.0,0.0001588,2]
[323081659,1713629438247,-500.0,0.0001588,2]
[323081660,1713629438257,-500.0,0.0001588,2]
[323081661,1713629438267,-500.0,0.0001588,2]
[323081662,1713629438276,-500.0,0.0001588,2]
[323081663,1713629438286,-500.0,0.0001588,2]
[323081664,1713629438295,-500.0,0.0001588,2]
[323081665,1713629438305,-500.0,0.0001588,2]
[323081666,1713629438314,-500.0,0.0001588,2]
[323081667,1713629438324,-500.0,0.0001588,2]
[323081668,1713629438333,-500.0,0.0001588,2]
[323081669,1713629438343,-500.0,0.00015881,2]
[323081670,1713629438353,-500.0,0.00015881,2]
[323081671,1713629438364,-500.0,0.00015881,2]
[323081672,1713629438373,-500.0,0.00015881,2]
[323081673,1713629438382,-500.0,0.00015881,2]
[323081674,1713629438392,-500.0,0.00015881,2]
[323081675,1713629438402,-500.0,0.00015881,2]
[323081676,1713629438411,-500.0,0.00015881,2]
[323081677,1713629438422,-580.17,0.00015881,2]
[323081678,1713629438431,-500.0,0.00015881,2]
[323081679,1713629438441,-500.0,0.00015881,2]
[323081680,1713629438451,-500.0,0.00015881,2]
[323081681,1713629438462,-500.0,0.00015881,2]
[323081682,1713629438472,-500.0,0.00015881,2]
[323081683,1713629438481,-500.0,0.00015881,2]
[323081684,1713629438491,-500.0,0.00015881,2]
[323081685,1713629438500,-500.0,0.00015881,2]
[323081686,1713629438509,-500.0,0.00015881,2]
[323081687,1713629438519,-602.64,0.00015881,2]
[323081688,1713629438528,-500.0,0.00015881,2]
[323081689,1713629438537,-500.0,0.00015881,2]
[323081690,1713629438547,-500.0,0.00015881,2]
[323081691,1713629438556,-501.5795432,0.00015881,2]
[323081692,1713629438566,-500.0,0.00015881,2]
[323081693,1713629438575,-499.93,0.00015881,2]
[323081694,1713629438585,-500.0,0.00015881,2]
[323081695,1713629438594,-500.0,0.00015881,2]
[323081696,1713629438603,-500.0,0.00015881,2]
[323081697,1713629438612,-500.0,0.00015881,2]
[323081698,1713629438621,-500.0,0.00015881,2]
[323081699,1713629438631,-500.0,0.00015881,2]
[323081700,1713629438640,-500.0,0.00015881,2]
[323081701,1713629438650,-500.0,0.00015881,2]
[323081702,1713629438659,-500.0,0.00015881,2]
[323081703,1713629438671,-294.6626638,0.00015881,2]
[323081704,1713629438681,-500.0,0.00015881,2]
[323081705,1713629438690,-500.0,0.00015881,2]
[323081706,1713629438700,-500.0,0.00015881,2]
[323081707,1713629438709,-500.0,0.00015881,2]
[323081708,1713629438718,-500.0,0.00015881,2]
[323081709,1713629438728,-500.0,0.00015881,2]
[323081710,1713629438738,-500.0,0.00015881,2]
[323081711,1713629438747,-500.0,0.00015881,2]
[323081712,1713629438756,-500.0,0.00015881,2]
[323081713,1713629438766,-500.0,0.00015881,2]
[323081714,1713629438776,-500.0,0.00015881,2]
[323081715,1713629438785,-500.0,0.00015881,2]
[323081716,1713629438795,-500.0,0.00015881,2]
[323081717,1713629438804,-644.56715839,0.00015881,2]
[323081718,1713629438814,-500.0,0.00015881,2]
[323081719,1713629438823,-500.0,0.00015881,2]
[323081720,1713629438833,-500.0,0.00015881,2]
[323081721,1713629438842,-500.0,0.00015881,2]
[323081722,1713629438851,-500.0,0.00015881,2]
[323081723,1713629438860,-500.0,0.00015881,2]
[323081724,1713629438870,-500.0,0.00015881,2]
[323081725,1713629438879,-500.0,0.00015881,2]
[323081726,1713629438889,-500.0,0.00015881,2]
[323081727,1713629438901,-500.0,0.00015881,2]
[323081728,1713629438912,-500.0,0.00015881,2]
[323081729,1713629438925,-500.0,0.00015881,2]
[323081730,1713629438935,-500.0,0.00015881,2]
[323081731,1713629438945,-500.0,0.00015881,2]
[323081732,1713629438954,-150.0,0.00015881,2]
[323081733,1713629438963,-500.0,0.00015881,2]
[323081734,1713629438973,-500.0,0.00015881,2]
[323081735,1713629438984,-500.0,0.00015881,2]
[323081736,1713629438995,-171.01,0.00015881,2]
[323081737,1713629439005,-500.0,0.00015881,2]
[323081738,1713629439015,-500.0,0.00015881,2]
[323081739,1713629439025,-500.0,0.00015881,2]
[323081740,1713629439036,-500.0,0.00015881,2]
[323081741,1713629439045,-500.0,0.00015881,2]
[323081742,1713629439055,-500.0,0.00015881,2]
[323081743,1713629439066,-500.0,0.00015881,2]
[323081744,1713629439076,-500.0,0.00015881,2]
[323081745,1713629439086,-500.0,0.00015881,2]
[323081746,1713629439096,-500.0,0.00015881,2]
[323081747,1713629439106,-500.0,0.00015881,2]
[323081748,1713629439117,-500.0,0.00015881,2]
[323081749,1713629439127,-500.0,0.00015881,2]
[323081750,1713629439137,-500.0,0.00015881,2]
[323081751,1713629439147,-500.0,0.00015881,2]
[323081752,1713629439158,-500.0,0.00015881,2]
[323081753,1713629439170,-500.0,0.00015881,2]
[323081754,1713629439181,-500.0,0.00015881,2]
[323081755,1713629439191,-338.57729801,0.00015881,2]
[323081756,1713629439204,-503.19280529,0.00015881,2]
[323081757,1713629439213,-500.0,0.00015881,2]
[323081758,1713629439223,-500.0,0.00015881,2]
[323081759,1713629439233,-500.0,0.00015881,2]